Cogmind - Beta 16 --- EXPLORER MODE // 2025.12.12 @ 14:12:22 Player: K.K.Y. Result: Destroyed by 0Q-NAO(R) with Subdweller Machine Gun Performance ------------- Evolutions (0) 0 Regions Visited (3) 600 Robots Destroyed (33) 165 Value Destroyed (509) 509 Prototype IDs (6) 120 Alien Tech Used (0) 0 Bonus (0) 0 TOTAL SCORE: 1394 Bonus ------- None Cogmind --------- Core Integrity 0/250 Matter 287/300 Energy 95/100 System Corruption 0% Temperature Cool (0) Movement Rolling (95) Ox1 Location -10/Subcaves Parts ------- > --- POWER (1) -------- (None) > --- PROPULSION (2) --- Wheel > --- UTILITY (3) ------ Small Storage Unit Sensor Array > --- WEAPON (2) ------- Improved Medium Laser Subdweller Machine Gun > --- INVENTORY (8) ---- Combat Airjet High-capacity Storage Unit Structural Scanner Improved Medium Laser Autobeam Beam Cannon Datajack Multitool Peak State ------------ > --- POWER ------------ Light Ion Engine > --- PROPULSION ------- Flexi-carbon Leg > --- UTILITY ---------- Small Storage Unit Sensor Array Improved Terrain Scanner > --- WEAPON ----------- Beam Cannon Bore Cannon > --- INVENTORY -------- Combat Airjet High-capacity Storage Unit Structural Scanner Improved Medium Laser Improved Medium Laser Beam Cannon Datajack [Rating: 18] Favorites ----------- Power Light Ion Engine Engine Light Ion Engine Propulsion Wheel Leg Flexi-carbon Leg Wheel Wheel Utility Sensor Array Device Sensor Array Storage Small Storage Unit Weapon Beam Cannon Energy Gun Improved Medium Laser Energy Cannon Beam Cannon Ballistic Gun Light Assault Rifle Ballistic Cannon Bore Cannon Special Weapon Multitool Build | -11 -10 -10 -10 ------- Run | Yrd Mat Min Sub Slots Evolved 1 | . 1 . . Power . | . . . . Propulsion . | . . . . Utility 1 | . 1 . . Weapon . | . . . . Parts Attached 31 | 7 8 6 10 Power 4 | 1 1 1 1 Engine 4 | 1 1 1 1 Core . | . . . . Reactor . | . . . . Propulsion 12 | 2 2 5 3 Treads . | . . . . Leg 1 | . . . 1 Wheel 11 | 2 2 5 2 Hover . | . . . . Flight . | . . . . Utility 3 | 2 1 . . Device 2 | 1 1 . . Storage 1 | 1 . . . Processor . | . . . . Hackware . | . . . . Protection . | . . . . Artifact . | . . . . Weapon 12 | 2 4 . 6 Energy Gun 3 | . 1 . 2 Energy Cannon 3 | . 3 . . Ballistic Gun 4 | 2 . . 2 Ballistic Cannon 1 | . . . 1 Launcher . | . . . . Special Weapon 1 | . . . 1 Impact Weapon . | . . . . Slashing Weapon . | . . . . Piercing Weapon . | . . . . Special Melee Weapon . | . . . . Unidentified Prototypes . | . . . . Parts Lost 6 | . . . 6 Power 1 | . . . 1 Propulsion 2 | . . . 2 Utility 1 | . . . 1 Weapon 2 | . . . 2 Highest Loss Streak 4 | . . . 4 To Critical Strikes . | . . . . Average Backups 5 | 3 2 6 7 Power . | 1 . . . Propulsion . | . . . 1 Utility 1 | 1 1 2 2 Weapon 2 | . 1 3 3 Tool/Special . | . . . . Unused Backups 16 | 1 8 2 5 Power 2 | 1 1 . . Propulsion 3 | . . 2 1 Utility 4 | . 2 . 2 Weapon 6 | . 5 . 1 Tool/Special 1 | . . . 1 Average Slot Usage (%) 97 | . 99 99 92 Engine 12 | . 12 12 12 Wheel 23 | . 25 24 20 Device 24 | . 24 25 24 Storage 12 | . 12 12 12 Energy Gun 2 | . . . 7 Energy Cannon 14 | . 15 25 3 Ballistic Gun 3 | . 8 . . Ballistic Cannon 2 | . . . 7 Peak Build Rating 18 | 7 11 12 18 Average Rating 11 | 2 10 11 15 On Entrance 7 | . 7 11 12 Avg Prop Armor Cover (%) 5 | . . 5 . Naked Turns . | . . . . Heaviest Build 22 | 11 16 16 22 Greatest Support 20 | 20 20 20 20 Greatest Overweight (x) 1 | . . 1 1 Average Overweight (x) . | . . . . Largest Inventory Capacity 8 | 8 8 8 8 Average Capacity 7 | 5 8 8 8 Most Carried 8 | 5 8 8 8 Average Carried 5 | 3 2 6 7 Final Capacity 8 | 8 8 8 8 Final Carried 8 | 1 6 8 8 Class Distribution -------------------- 91% | Scavenger-Mutant 8% | Hacker-Mutant Dominant Class ---------------- Scavenger-Mutant | -10/Materials Scavenger-Mutant | -10/Mines Scavenger-Mutant | -10/Subcaves Resources | -11 -10 -10 -10 ----------- Run | Yrd Mat Min Sub Matter Collected 958 | 280 110 108 460 Remotely . | . . . . Salvage Created 1056 | 133 465 147 311 Parts 75 | 10 36 6 23 Haulers Intercepted 2 | . 2 . . Recyclers Shooed . | . . . . Parts Field Recycled . | . . . . Retrieved Matter . | . . . . Parts Self-Destructed . | . . . . Prevented . | . . . . Parts Restored . | . . . . Kills | -11 -10 -10 -10 ------- Run | Yrd Mat Min Sub Combat Hostiles Destroyed 22 | . 6 7 9 Guns 8 | . 6 . 2 Cannons 14 | . . 7 7 Classes Destroyed 11 | 2 5 1 3 Worker 6 | . 6 . . Tunneler 2 | 2 . . . Hauler 2 | . 2 . . Recycler 3 | 1 1 1 . Turret 2 | . . . 2 Watcher 1 | . 1 . . Swarmer 10 | . 4 2 4 Grunt 2 | . 2 . . Cobbler 1 | . . . 1 Subdweller 5 | . . . 5 Assembled 5 | . . 5 . Best Kill Streak 6 | 2 3 3 6 Combat Bots Only 4 | . 2 3 4 Max Kills in Single Turn 1 | 1 1 1 1 Gunslinging . | . . . . Exploded . | . . . . Melee . | . . . . Uniques/NPCs Destroyed . | . . . . Combat | -11 -10 -10 -10 -------- Run | Yrd Mat Min Sub Hostile Shots Fired 129 | . 21 20 88 Missed 36 | . 2 3 31 Hits 93 | . 19 17 57 Projectile 93 | . 19 17 57 Damage Taken 915 | . 168 100 647 Core 261 | . 69 18 174 Absorbed by Shields . | . . . . Ignored by Resistances 523 | . 105 69 349 Core Remaining (%) 100 | 100 . . . Volleys Fired 130 | 5 34 16 75 Largest 2 | 2 2 2 2 Hottest 120 | 40 120 120 120 Shots Fired 230 | 10 68 32 120 Gun 84 | 10 38 . 36 Cannon 140 | . 30 32 78 Launcher . | . . . . Special 6 | . . . 6 Kinetic 98 | 10 38 . 50 Thermal 132 | . 30 32 70 Explosive . | . . . . Electromagnetic . | . . . . Robot Hit Streak 25 | 10 19 4 25 Robot Miss Streak 3 | . 3 1 3 Penetration Max . | . . . . Secondary Targets 2 | . 2 . . Max Gunslinging Chain 1 | . 1 . . Shots Hit Robots 145 | 10 51 20 64 Core Hits 63 | 6 26 10 21 Critical Kills 5 | . . . 5 Critical Parts Destroyed 4 | . 1 . 3 Critical Strikes 12 | . 1 . 11 Destroy 12 | . 1 . 11 Melee Attacks . | . . . . Impact . | . . . . Slashing . | . . . . Piercing . | . . . . Sneak Attacks . | . . . . Combat Hostiles . | . . . . Follow-up Attacks . | . . . . Damage Inflicted 2166 | 82 640 351 1093 Guns 721 | 82 261 . 378 Cannons 1435 | . 369 351 715 Explosions . | . . . . Melee . | . . . . Ramming 10 | . 10 . . Kinetic 801 | 82 261 . 458 Thermal 1355 | . 369 351 635 Explosive . | . . . . Electromagnetic . | . . . . Impact . | . . . . Slashing . | . . . . Piercing . | . . . . Highest Corruption . | . . . . Average Corruption . | . . . . Corruption Purged . | . . . . Corruption Blocked . | . . . . Overload Shots . | . . . . Overflow Damage 8 | . 5 . 3 Projectiles 8 | . 5 . 3 Explosions . | . . . . Melee . | . . . . Knockbacks 5 | . . . 5 Impact . | . . . . Kinetic 5 | . . . 5 Secondary . | . . . . Self-Inflicted Damage 4 | . 4 . . Shots . | . . . . Rammed 2 | . 2 . . Targets Rammed 2 | . 2 . . Kicked . | . . . . Crushed . | . . . . Highest Temperature 450 | . 320 450 46 Average Temperature 104 | . 82 149 15 Received Heat Transfer 361 | . 72 100 189 Effects 7 | . 2 5 . Shutdowns 1 | . . 1 . Energy Bleed 4 | . 2 2 . Matter Decay 1 | . . 1 . Short Circuit 1 | . . 1 . Siege Activations . | . . . . Martial Activations . | . . . . Shielding Activations . | . . . . Robots Disrupted . | . . . . Combat Hostiles . | . . . . Robots Corrupted . | . . . . Combat Hostiles . | . . . . Parts Fried . | . . . . Impact Corruptions . | . . . . Robots Melted . | . . . . Combat Hostiles . | . . . . Parts Melted 2 | . 1 . 1 Heat Transferred 2886 | . 777 740 1369 Parts Sabotaged . | . . . . Parts Stolen . | . . . . Parts Stripped . | . . . . Power Chain Reactions . | . . . . Alert | -11 -10 -10 -10 ------- Run | Yrd Mat Min Sub Maximum Alert Level . | . . . . Low Security (%) 100 | 100 100 100 . Level 1 . | . . . . Level 2 . | . . . . Level 3 . | . . . . Level 4 . | . . . . Level 5 . | . . . . High Security . | . . . . Max Security . | . . . . Peak Influence 57 | 5 57 54 . Initial . | . . . . Average 6 | . 10 2 . Influence Increases 525 | 15 270 60 180 Destroy 0b10 Robot/C 280 | . 120 40 120 Destroy 0b10 Robot/NC 70 | 15 50 5 . Destroy Leader 46 | . 36 10 . Successful Hack 64 | . 64 . . Disable Machine 4 | . . 4 . Destroy Structure 1 | . . 1 . Lose Combat Pursuer 60 | . . . 60 Influence Decreases 525 | 15 270 60 180 Time Decay 525 | 15 270 60 180 Squads Dispatched . | . . . . Investigation . | . . . . Extermination . | . . . . Reinforcement . | . . . . Assault . | . . . . Garrison . | . . . . Intercept . | . . . . Searches Triggered . | . . . . Construction Impeded . | . . . . Haulers Reinforced . | . . . . Active Scanning Responses . | . . . . Cargo Convoy Interrupts . | . . . . Stealth | -11 -10 -10 -10 --------- Run | Yrd Mat Min Sub Distress Signals 2 | . . 2 . Communications Jammed . | . . . . Distress Signals . | . . . . Times Spotted 36 | . 15 6 15 Peak Tracking Total 4 | . 3 2 4 Tactical Retreats 3 | . . . 3 Traps | -11 -10 -10 -10 ------- Run | Yrd Mat Min Sub Traps Triggered 5 | . 2 . 3 Indirectly . | . . . . Trap Hack Attempts . | . . . . Triggered . | . . . . Disarmed . | . . . . Reprogrammed . | . . . . Reused . | . . . . Traps Extracted . | . . . . Installed . | . . . . Triggered . | . . . . Machines | -11 -10 -10 -10 ---------- Run | Yrd Mat Min Sub Machines Disabled 4 | . . 2 2 Max in Single Turn 1 | . . 1 1 Machines Repaired . | . . . . Machines Dismantled . | . . . . Machines Sabotaged . | . . . . Overloaded Fab Kills . | . . . . Hacking | -11 -10 -10 -10 --------- Run | Yrd Mat Min Sub Machines Accessed 7 | . 7 . . Terminals 7 | . 7 . . Fabricators . | . . . . Repair Stations . | . . . . Recycling Units . | . . . . Scanalyzers . | . . . . Garrison Access . | . . . . Total Hacks 17 | . 17 . . Successful 12 | . 12 . . Failed 5 | . 5 . . Catastrophic . | . . . . Database Lockouts . | . . . . Manual 17 | . 17 . . Terminals 17 | . 17 . . Fabricators . | . . . . Repair Stations . | . . . . Recycling Units . | . . . . Scanalyzers . | . . . . Garrison Access . | . . . . Terminal Hacks 4 | . 4 . . Prototype ID Bank 4 | . 4 . . Fabricator Hacks . | . . . . Repair Station Hacks . | . . . . Recycling Unit Hacks . | . . . . Scanalyzer . | . . . . Garrison Access Hacks . | . . . . Unauthorized Hacks 7 | . 7 . . Terminals 7 | . 7 . . Botnet 7 | . 7 . . Fabricators . | . . . . Repair Stations . | . . . . Recycling Units . | . . . . Scanalyzers . | . . . . Garrison Access . | . . . . Data Cores Recovered . | . . . . Used . | . . . . Hacking Detections 4 | . 4 . . Full Trace Events . | . . . . Feedback Events . | . . . . Feedback Blocked . | . . . . Robot Schematics Acquired . | . . . . Robots Built . | . . . . Authchips . | . . . . Time . | . . . . Total Robot Build Rating . | . . . . Part Schematics Acquired . | . . . . Parts Built . | . . . . Authchips . | . . . . Time . | . . . . Total Part Build Rating . | . . . . Part Studies Acquired . | . . . . Parts Repaired . | . . . . Time . | . . . . Parts Recycled . | . . . . Recycled Matter . | . . . . Retrieved Matter . | . . . . Retrieved Components . | . . . . Parts Scanalyzed . | . . . . Part Schematics Acquired . | . . . . Parts Damaged . | . . . . Bothacking | -11 -10 -10 -10 ------------ Run | Yrd Mat Min Sub Used RIF Installer . | . . . . Robots Hacked . | . . . . Non-combat . | . . . . Combat . | . . . . Robot Hacks Applied . | . . . . Relay Couplers Released . | . . . . Fabnet Peak Effective % . | . . . . Robots Rewired . | . . . . Allies Hacked . | . . . . Hacks Repelled . | . . . . Allies | -11 -10 -10 -10 -------- Run | Yrd Mat Min Sub Total Allies . | . . . . Largest Group . | . . . . Highest-Rated Group . | . . . . Highest-Rated Ally . | . . . . Total Orders . | . . . . Ally Attacks . | . . . . Total Damage . | . . . . Kills . | . . . . Allies Corrupted . | . . . . Allies Melted . | . . . . Intel | -11 -10 -10 -10 ------- Run | Yrd Mat Min Sub Active Infowar (turns) 2417 | 5 827 743 842 Sensors 2417 | 5 827 743 842 Terrain 2367 | . 805 743 819 Robot Analysis Total . | . . . . Derelict Logs Recovered . | . . . . Drone Launches . | . . . . Drone Recoveries . | . . . . Exploration | -11 -10 -10 -10 ------------- Run | Yrd Mat Min Sub Turns Passed 2485 | 73 827 743 842 Spaces Moved 2316 | 54 850 745 667 Core 42 | 42 . . . Treads . | . . . . Legs 63 | . . . 63 Wheels 2211 | 12 850 745 604 Hover . | . . . . Flight . | . . . . Fastest Speed 50 | 50 80 80 80 Average Speed 82 | 56 80 80 90 Slowest Speed 190 | 80 80 95 190 Overloaded Moves . | . . . . Propulsion Burnouts . | . . . . Robots Hopped . | . . . . Potential Cave-ins 1 | . . . 1 Cave-ins Triggered . | . . . . Exploration Rate (%) 57 | 5 98 89 37 Regions Visited 3 Branch Regions 2 Pre-discovered Areas . | . . . . Known Exits Taken 3 | 1 1 1 . Unknown Exits Taken . | . . . . Scrap Searched . | . . . . Spaces Dug 2 | . . . 2 Terrain Destroyed 8 | . . . 8 Melee . | . . . . Projectile 8 | . . . 8 AOE . | . . . . Terrain Rammed . | . . . . Walls Destroyed . | . . . . Machines Disabled . | . . . . Actions | -11 -10 -10 -10 --------- Run | Yrd Mat Min Sub Total 2673 | 88 944 861 780 Wait 115 | 13 12 72 18 Move 2313 | 53 849 744 667 Hop . | . . . . Pick Up 43 | 9 21 11 2 Fast Attach 4 | . . . 4 Attach 14 | 7 4 1 2 Detach 5 | . 3 1 1 Swap 15 | . 4 5 6 Drop 32 | 1 15 11 5 Fire 130 | 5 34 16 75 Melee . | . . . . Ram 2 | . 2 . . Kick . | . . . . Crush . | . . . . Escape Stasis . | . . . . Rewire . | . . . . Trap . | . . . . Miscellaneous . | . . . . Route ------- -11/Scrapyard -10/Materials (discovered 5 exits: *Mat x3 / *Min x2) -10/Mines (discovered 2 exits: *Mat / *Sub) -10/Subcaves (discovered 1 exit: *Rec) History --------- Turn | Location | Event 4 | -11/Scrapyard | Identified exit to Materials 4 | -11/Scrapyard | Discovered exit to Materials (range 15) 74 | -11/Scrapyard | Entered Materials 74 | -10/Materials | Evolved 1 slot: Utility x1 228 | -10/Materials | Identified exit to Materials 228 | -10/Materials | Discovered exit to Materials (range 16) 342 | -10/Materials | Identified exit to Mines 342 | -10/Materials | Discovered exit to Mines (range 13) 404 | -10/Materials | Build established: Scavenger-Mutant 466 | -10/Materials | Discovered exit to Materials (range 11) 624 | -10/Materials | Discovered exit to Materials (range 12) 751 | -10/Materials | Discovered exit to Mines (range 16) 901 | -10/Materials | Entered Mines 902 | -10/Mines | Assembled infested the area 907 | -10/Mines | Assisted by a Guerilla fighting off Assembled 1009 | -10/Mines | Found a hidden stash of uninstalled traps 1037 | -10/Mines | Received a Rocket Launcher from a helpful Derelict 1209 | -10/Mines | Discovered exit to Materials (range 8) 1506 | -10/Mines | Deemed a non-threat by the Exiles lab entrance 1633 | -10/Mines | Identified exit to Subcaves 1633 | -10/Mines | Discovered exit to Subcaves (range 13) 1644 | -10/Mines | Entered Subcaves 1645 | -10/Subcaves | Approached by a straggling Scientist 1752 | -10/Subcaves | Ambushed by angry Subdweller bent on revenge 1758 | -10/Subcaves | Core integrity fell below 50% 1785 | -10/Subcaves | Identified exit to Recycling 1785 | -10/Subcaves | Discovered exit to Recycling (range 16) 1981 | -10/Subcaves | Shifting Twisted Machinery released Battle Rifle 1983 | -10/Subcaves | Shifting Twisted Machinery released Sub. Shrapnel Launcher 2029 | -10/Subcaves | A swath of the cavern ceiling suddenly collapsed 2075 | -10/Subcaves | A swath of the cavern ceiling suddenly collapsed 2371 | -10/Subcaves | Shifting Twisted Machinery released Shrapnel Trap 2466 | -10/Subcaves | Core integrity fell below 20% 2486 | -10/Subcaves | Destroyed by 0Q-NAO(R) with Subdweller Machine Gun Last Messages --------------- 02320_ Acquired 56 matter. 02362_ Acquired 59 matter. Shrapnel Trap falls loose from the Twisted Machinery. 02389_ HV Slug penetrates Twisted Machinery. 02458_ Acquired 11 matter. 02463_ Triggered Piercing Trap. 02463_ Spikes shoot up from the floor. 02463_ Critical hit (Impale). 02463_ Imp. Terrain Scanner destroyed. 02465_ Triggered Piercing Trap. 02465_ Spikes shoot up from the floor. 02465_ Critical hit (Impale). 02465_ Bore Cannon destroyed. 02469_ Triggered Shrapnel Trap. 02469_ An expanding cloud of shrapnel blasts out in all directions. 02472_ Wheel destroyed. 02474_ Acquired Sub. Machine Gun. 02484_ Lgt. Ion Engine destroyed. Map ----- +----------------------------------------------------+ | ?????????????????????????????????????????????????? | | ?????????????????????????????????????????????????? | | ?????????????????????????????????????????????????? | | ?????????????????????????????????????????????????? | | ?????????????????????????????????????????????????? | | ?????????????????????????????????????????????????? | | ?????????????????????????????????????????????????? | | ?????????????????????????????????????????????????? | | ?????????????????????????????????????????????????? | | ?????????????????????????????????????????????????? | | ?????????????????????????????????????????????????? | | ?????????????????????????????????????????????????? | | ?????????????????????????????????????????????????? | | ?????????????????????????????????????????????????? | | ?????????????????????????????????????????????????? | | ?????????????????????????????????????????????????? | | ?????????????????????????????????????????????????? | | ?????????????????????????????????????????????????? | | ?????????????????????????????????????????????????? | | ?????????????????????????????????????????????????? | | ?????????????????????????????????????????????????? | | ????????????????####?????????????????????????????? | | ????????????????# #######???##?????????????????? | | ???????????????## "" " ### ###???????????????? | | ??????????????# """ ^ ##??????????????? | | ???????????????????## @ R % ???????? | | ??????????????#????#;; ## # ???????? | | ???????????????????#; ;"####?????? ???????? | | ??????????????????## ""#??????????????????????? | | ?????????????????## "#???????????????#??????? | | ????????????????## ""####????????????????? ?? | | ????????????????# # #????#??????????????? | | ????????? ""#####???????????????? | | ???????? # # #####???????????# | | ?????????### ### ### ### #????? ?????? | | ???????????# ???##??# "??# ## ## #???????????? | | ???????????#????????#""?#" ###### ###??????????? | | ????????????????????" " " #????# #??????????? | | ???????????????????# """" #????## #??????????? | | ???????????????????## ???### ######??????? | | ????????????????????# ##???# # ##?????? | | ????????????????????## ## ## #?????? | | ?????????????????????# ## #?????? | | ?????????????????????# # ## ### ##????## | | ?????????????????????? ##???# ## ######?# | | ?????????????????????? ?????# ## #### ### | | ?????????????????????? ?????# ## ### | | ????????????????????????????# #### ## | | ????????????????????????????## ####??# ## | | ????????????????????????????## ??????# ## | +----------------------------------------------------+ Best States ------------- Heat Dissipation 25 Energy Generation 10 Energy Capacity 125 Matter Stores 300 Matter Capacity 300 Sight Range 16 Robot Scan Range 14 Terrain Scan Range 16 Terrain Scan Density 10 Resistance: KI 35 Resistance: TH 35 Resistance: EX 35 Resistance: EM 35 Resistance: I 35 Resistance: S 35 Resistance: P 35 Evasion (%) 55 Offensive Hacking 20 Item Schematics ----------------- None Robot Schematics ------------------ None Fabricated ------------ Nothing Repaired ---------- Nothing Studied --------- None Alien Tech Used ----------------- None Achievements -------------- None Challenges ------------ None Game ------ Seed HardenedBombardmentExpander Manual? 0 Play Time 00:18:53 Cumulative 195.3 hours Start 2025.12.12 @ 13:54:13 End 2025.12.12 @ 14:12:22 Sessions 1 Manual Loads 0 Difficulty Explorer Special Mode None Game No. 286 Rogue 0 Adventurer 0 Explorer 286 Win Type - Total 0 Types 0/0/0/0/0/0/0/0/0/0 Lore% 71 Gallery% 67 Achievement% 53 Wizard Run 0 Options --------- Layout 1 ASCII 0 Keyboard 0 Movement Mouse Keybinds 0 Fullscreen 1 Font 24/Smallcaps Map View 50x35 Zoom Use 0% Tactical HUD 1 Map Filters NONE Filters NONE Steam 1 RUN: 52537ebb-45a2-4f87-9655-132fe729715e